[Event "ESTCC 50 2019"]
[Site "Mali Losinj"]
[Date "2019.09.25"]
[Round "8.12"]
[White "Leib, Britta"]
[Black "Plesec, Damjan"]
[Result "0-1"]
[ECO "B01"]
[WhiteElo "1883"]
[BlackElo "2216"]
[Annotator "NA"]
[PlyCount "84"]
[EventDate "2019.09.18"]
[EventType "team-tourn"]
[EventCountry "CRO"]
[SourceTitle "playchess.com"]
[Source "ChessBase"]
[SourceQuality "1"]
[WhiteTeam "Germany"]
[BlackTeam "Slovenia"]
[WhiteTeamCountry "GER"]
[BlackTeamCountry "SLO"]
[TimeControl "40/5400+30:1800+30"]

1. e4 {[%emt 0:00:30]} d5 {[%emt 0:00:30]} 2. exd5 {[%emt 0:00:30]} Qxd5 {[%emt 0:00:30]} 3. Nc3 {[%emt 0:00:30]} Qa5 {[%emt 0:00:30]} 4. Bc4 {[%emt 0:00:30]} Nf6 {[%emt 0:00:30]} 5. Nge2 {[%emt 0:00:30]} c6 {[%emt 0:00:30]} 6. d3 {[%emt 0:01:30]} Bf5 {[%emt 0:10:30]} 7. O-O {[%emt 0:04:30]} e6 {[%emt 0:00:30]} 8. Bf4 {[%emt 0:00:30]} Nbd7 {[%emt 0:03:30]} 9. h3 {[%emt 0:01:30]} Nb6 {[%emt 0:02:30]} 10. Bb3 {[%emt 0:02:30]} Nbd5 {[%emt 0:00:30]} 11. Bh2 {[%emt 0:03:30]} Be7 {[%emt 0:01:30]} 12. a3 {[%emt 0:04:30]} O-O {[%emt 0:02:30]} 13. Nxd5 {[%emt 0:02:30]} cxd5 {[%emt 0:01:30]} 14. Re1 {[%emt 0:05:30]} Rfe8 {[%emt 0:02:30]} 15. g4 {[%emt 0:06:30]} Bg6 {[%emt 0:00:30]} 16. Nf4 {[%emt 0:00:00]} Bd6 {[%emt 0:01:30]} 17. Nxg6 {[%emt 0:00:00]} Bxh2+ {[%emt 0:00:30]} 18. Kxh2 {[%emt 0:00:30]} hxg6 {[%emt 0:00:30]} 19. f3 {[%emt 0:03:30]} b5 {[%emt 0:08:30]} 20. d4 {[%emt 0:03:30]} Qc7+ {[%emt 0:01:30]} 21. Kg2 {[%emt 0:00:30]} a5 {[%emt 0:02:30]} 22. a4 {[%emt 0:01:30]} b4 {[%emt 0:00:30]} 23. Qd2 {[%emt 0:02:30]} Rec8 {[%emt 0:04:30]} 24. Re2 {[%emt 0:00:30]} Nd7 {[%emt 0:02:30]} 25. Qe3 {[%emt 0:04:30]} Nb6 {[%emt 0:00:30]} 26. Qe5 {[%emt 0:00:30]} Qxe5 {[%emt 0:03:30]} 27. dxe5 {[%emt 0:01:30]} Nd7 {[%emt 0:00:00]} 28. Ba2 {[%emt 0:02:30]} Rc7 {[%emt 0:03:00]} 29. Rd1 {[%emt 0:01:30]} g5 {[%emt 0:04:30]} 30. Kg3 {[%emt 0:04:30]} Rac8 {[%emt 0:02:30]} 31. Bb3 {[%emt 0:03:30]} Kf8 {[%emt 0:04:30]} 32. h4 {[%emt 0:03:30]} gxh4+ {[%emt 0:00:00]} 33. Kxh4 {[%emt 0:00:00]} Ke7 {[%emt 0:00:00]} 34. Kg3 {[%emt 0:01:00]} Rh8 {[%emt 0:00:30]} 35. Ba2 {[%emt 0:03:30]} g5 {[%emt 0:03:30]} 36. Rg1 {[%emt 0:04:30]} Rcc8 {[%emt 0:03:30]} 37. Bb1 {[%emt 0:05:30]} Nc5 {[%emt 0:02:30]} 38. b3 {[%emt 0:01:30]} Nd7 {[%emt 0:01:30]} 39. Rge1 {[%emt 0:01:30]} Rc3 {[%emt 0:01:30]} 40. Rf1 {[%emt 0:01:30]} Rh4 {[%emt 0:00:30]} 41. Rd1 {[%emt 0:30:30]} Nf8 {[%emt 0:31:30]} 42. Rd3 {[%emt 0:04:01]} Rh1 {[%emt 0:01:30]} 0-1

[Event "ESTCC 50 2019"]
[Site "Mali Losinj"]
[Date "2019.09.25"]
[Round "8.13"]
[White "Ponce Navalon, Jose"]
[Black "Krebs, Johann"]
[Result "1-0"]
[ECO "B27"]
[WhiteElo "2024"]
[BlackElo "2226"]
[Annotator "NA"]
[PlyCount "93"]
[EventDate "2019.09.18"]
[EventType "team-tourn"]
[EventCountry "CRO"]
[SourceTitle "playchess.com"]
[Source "ChessBase"]
[SourceQuality "1"]
[WhiteTeam "Spain"]
[BlackTeam "Austria"]
[WhiteTeamCountry "ESP"]
[BlackTeamCountry "AUT"]
[TimeControl "40/5400+30:1800+30"]

1. e4 {[%emt 0:00:30]} g6 {[%emt 0:00:30]} 2. d4 {[%emt 0:00:30]} Bg7 {[%emt 0:00:30]} 3. Nf3 {[%emt 0:00:00]} c5 {[%emt 0:01:30]} 4. dxc5 {[%emt 0:11:00]} Qa5+ {[%emt 0:00:30]} 5. c3 {[%emt 0:00:30]} Qxc5 {[%emt 0:00:00]} 6. Be3 {[%emt 0:00:00]} Qa5 {[%emt 0:03:00]} 7. Nbd2 {[%emt 0:02:00]} Nc6 {[%emt 0:03:30]} 8. Bc4 {[%emt 0:04:30]} Nf6 {[%emt 0:03:30]} 9. Qe2 {[%emt 0:11:30]} O-O {[%emt 0:06:30]} 10. h3 {[%emt 0:01:30]} d6 {[%emt 0:17:30]} 11. O-O {[%emt 0:04:30]} Bd7 {[%emt 0:02:30]} 12. Bf4 {[%emt 0:03:30]} Rac8 {[%emt 0:06:30]} 13. Qe3 {[%emt 0:06:30]} b5 {[%emt 0:08:30]} 14. b4 {[%emt 0:05:30]} Qa6 {[%emt 0:03:30]} 15. Bb3 {[%emt 0:02:30]} Qb7 {[%emt 0:05:30]} 16. Rac1 {[%emt 0:02:30]} a5 {[%emt 0:06:30]} 17. a3 {[%emt 0:00:00]} Ra8 {[%emt 0:01:30]} 18. Ra1 {[%emt 0:06:00]} Rfc8 {[%emt 0:02:30]} 19. Rfd1 {[%emt 0:03:30]} Nd8 {[%emt 0:06:33]} 20. e5 {[%emt 0:10:30]} dxe5 {[%emt 0:01:03]} 21. Nxe5 {[%emt 0:00:30]} Be6 {[%emt 0:00:39]} 22. c4 {[%emt 0:00:30]} axb4 {[%emt 0:04:40]} 23. axb4 {[%emt 0:00:30]} Rxa1 {[%emt 0:01:45]} 24. Rxa1 {[%emt 0:00:30]} bxc4 {[%emt 0:00:02]} 25. Ndxc4 {[%emt 0:00:00]} Nd5 {[%emt 0:00:31]} 26. Na5 {[%emt 0:05:43]} Nxe3 {[%emt 0:04:14]} 27. Nxb7 {[%emt 0:00:07]} Bxb3 {[%emt 0:00:57]} 28. Nxd8 {[%emt 0:00:13]} Nd5 {[%emt 0:03:38]} 29. Ndc6 {[%emt 0:01:36]} f6 {[%emt 0:01:57]} 30. Na7 {[%emt 0:03:47]} Ra8 {[%emt 0:03:07]} 31. Nd3 {[%emt 0:05:03]} Bc4 {[%emt 0:00:22]} 32. Ra5 {[%emt 0:05:02]} Nc3 {[%emt 0:01:29]} 33. Nb2 {[%emt 0:00:24]} Ne2+ {[%emt 0:00:37]} 34. Kh2 {[%emt 0:00:17]} Bf7 {[%emt 0:00:21]} 35. Be3 {[%emt 0:00:31]} f5 {[%emt 0:00:14]} 36. Nd3 {[%emt 0:00:10]} Nc3 {[%emt 0:00:38]} 37. Ne5 {[%emt 0:01:04]} Nd5 {[%emt 0:00:22]} 38. Nac6 {[%emt 0:02:57]} Re8 {[%emt 0:00:56]} 39. Bc5 {[%emt 0:00:29]} Bf6 {[%emt 0:00:45]} 40. Ra7 {[%emt 0:01:19]} Be6 {[%emt 0:00:29]} 41. b5 {[%emt 0:00:48]} Bxe5+ {[%emt 0:14:04]} 42. Nxe5 {[%emt 0:00:30]} Rb8 {[%emt 0:00:17]} 43. Ra5 {[%emt 0:00:30]} Nc3 {[%emt 0:06:06]} 44. b6 {[%emt 0:00:30]} Bd5 {[%emt 0:00:15]} 45. Bd4 {[%emt 0:00:30]} Ne2 {[%emt 0:00:36]} 46. Rxd5 {[%emt 0:00:30]} Nxd4 {[%emt 0:00:12]} 47. Nd7 {[%emt 0:00:30]} 1-0

[Event "ESTCC 50 2019"]
[Site "Mali Losinj"]
[Date "2019.09.25"]
[Round "8.14"]
[White "Wegerer, Fred"]
[Black "Pastor Alonso De Prado, Alberto"]
[Result "1-0"]
[ECO "A07"]
[WhiteElo "2171"]
[BlackElo "2010"]
[Annotator "NA"]
[PlyCount "107"]
[EventDate "2019.09.18"]
[EventType "team-tourn"]
[EventCountry "CRO"]
[SourceTitle "playchess.com"]
[Source "ChessBase"]
[SourceQuality "1"]
[WhiteTeam "Austria"]
[BlackTeam "Spain"]
[WhiteTeamCountry "AUT"]
[BlackTeamCountry "ESP"]
[TimeControl "40/5400+30:1800+30"]

1. g3 {[%emt 0:00:30]} d5 {[%emt 0:01:30]} 2. Bg2 {[%emt 0:00:00]} Nf6 {[%emt 0:00:30]} 3. Nf3 {[%emt 0:01:00]} c6 {[%emt 0:02:30]} 4. b3 {[%emt 0:01:30]} Bg4 {[%emt 0:00:30]} 5. Ba3 {[%emt 0:02:30]} Nbd7 {[%emt 0:03:30]} 6. c4 {[%emt 0:00:00]} Bxf3 {[%emt 0:04:30]} 7. Bxf3 {[%emt 0:02:00]} dxc4 {[%emt 0:00:30]} 8. bxc4 {[%emt 0:00:30]} Ne5 {[%emt 0:00:30]} 9. Qb3 {[%emt 0:06:30]} Nxf3+ {[%emt 0:00:30]} 10. Qxf3 {[%emt 0:05:30]} Qd4 {[%emt 0:15:30]} 11. Nc3 {[%emt 0:25:30]} h5 {[%emt 0:00:30]} 12. Rb1 {[%emt 0:02:30]} O-O-O {[%emt 0:00:30]} 13. O-O {[%emt 0:05:30]} h4 {[%emt 0:04:30]} 14. Rb3 {[%emt 0:11:30]} hxg3 {[%emt 0:01:30]} 15. hxg3 {[%emt 0:00:30]} Qxc4 {[%emt 0:13:30]} 16. Rfb1 {[%emt 0:01:30]} Rd7 {[%emt 0:00:30]} 17. d3 {[%emt 0:10:30]} Qa6 {[%emt 0:04:30]} 18. Bc5 {[%emt 0:03:47]} e6 {[%emt 0:02:30]} 19. Ra3 {[%emt 0:05:34]} Qxa3 {[%emt 0:00:30]} 20. Bxa3 {[%emt 0:00:01]} Bxa3 {[%emt 0:00:00]} 21. Qe3 {[%emt 0:01:22]} Kb8 {[%emt 0:02:00]} 22. Kg2 {[%emt 0:05:15]} Bd6 {[%emt 0:02:30]} 23. Qf3 {[%emt 0:00:55]} Be5 {[%emt 0:00:30]} 24. Nd1 {[%emt 0:02:12]} Kc8 {[%emt 0:02:30]} 25. Ne3 {[%emt 0:00:10]} Bc7 {[%emt 0:00:30]} 26. Nc4 {[%emt 0:00:16]} Rd5 {[%emt 0:00:30]} 27. e4 {[%emt 0:03:04]} Rdh5 {[%emt 0:03:30]} 28. Qe3 {[%emt 0:01:52]} b5 {[%emt 0:00:30]} 29. Qxa7 {[%emt 0:00:39]} bxc4 {[%emt 0:01:30]} 30. Rb7 {[%emt 0:00:21]} Ne8 {[%emt 0:00:30]} 31. dxc4 {[%emt 0:00:12]} Rh2+ {[%emt 0:00:30]} 32. Kf3 {[%emt 0:00:04]} f5 {[%emt 0:02:30]} 33. e5 {[%emt 0:01:01]} g5 {[%emt 0:00:30]} 34. Rb3 {[%emt 0:01:03]} Bxe5 {[%emt 0:04:30]} 35. Qb7+ {[%emt 0:00:36]} Kd8 {[%emt 0:00:30]} 36. Rd3+ {[%emt 0:00:22]} Nd6 {[%emt 0:00:00]} 37. c5 {[%emt 0:00:14]} g4+ {[%emt 0:00:00]} 38. Ke2 {[%emt 0:00:34]} R2h7 {[%emt 0:00:30]} 39. Qb8+ {[%emt 0:00:37]} Kd7 {[%emt 0:00:30]} 40. Rxd6+ {[%emt 0:00:34]} Bxd6 {[%emt 0:00:00]} 41. Qxd6+ {[%emt 0:30:06]} Ke8 {[%emt 0:30:00]} 42. Qxc6+ {[%emt 0:00:07]} Kf7 {[%emt 0:02:30]} 43. Qd6 {[%emt 0:01:28]} Re8 {[%emt 0:00:00]} 44. c6 {[%emt 0:00:00]} Rhh8 {[%emt 0:00:00]} 45. c7 {[%emt 0:00:00]} Ra8 {[%emt 0:00:00]} 46. a4 {[%emt 0:00:00]} Rhe8 {[%emt 0:00:00]} 47. Qd7+ {[%emt 0:00:00]} Kf6 {[%emt 0:00:00]} 48. a5 {[%emt 0:00:00]} Rec8 {[%emt 0:00:00]} 49. a6 {[%emt 0:00:00]} Rxc7 {[%emt 0:00:00]} 50. Qxc7 {[%emt 0:00:00]} Rxa6 {[%emt 0:00:00]} 51. Qd8+ {[%emt 0:00:00]} Kf7 {[%emt 0:00:00]} 52. Ke3 {[%emt 0:00:00]} e5 {[%emt 0:00:00]} 53. Qd3 {[%emt 0:00:00]} Rf6 {[%emt 0:02:30]} 54. Qd7+ {[%emt 0:00:00]} 1-0

[Event "ESTCC 50 2019"]
[Site "Mali Losinj"]
[Date "2019.09.25"]
[Round "8.15"]
[White "Ruiz Bellon, Manuel"]
[Black "Kainz, Josef"]
[Result "1-0"]
[ECO "B22"]
[WhiteElo "1973"]
[BlackElo "1922"]
[Annotator "NA"]
[PlyCount "91"]
[EventDate "2019.09.18"]
[EventType "team-tourn"]
[EventCountry "CRO"]
[SourceTitle "playchess.com"]
[Source "ChessBase"]
[SourceQuality "1"]
[WhiteTeam "Spain"]
[BlackTeam "Austria"]
[WhiteTeamCountry "ESP"]
[BlackTeamCountry "AUT"]
[TimeControl "40/5400+30:1800+30"]

1. e4 {[%emt 0:00:30]} c5 {[%emt 0:00:30]} 2. c3 {[%emt 0:00:00]} Nf6 {[%emt 0:00:30]} 3. e5 {[%emt 0:00:00]} Nd5 {[%emt 0:00:00]} 4. Nf3 {[%emt 0:00:30]} e6 {[%emt 0:00:00]} 5. d4 {[%emt 0:00:30]} cxd4 {[%emt 0:00:30]} 6. cxd4 {[%emt 0:01:30]} Nc6 {[%emt 0:00:30]} 7. Bc4 {[%emt 0:01:30]} Nb6 {[%emt 0:00:30]} 8. Bb3 {[%emt 0:00:30]} d5 {[%emt 0:00:30]} 9. O-O {[%emt 0:02:30]} Be7 {[%emt 0:00:30]} 10. Nc3 {[%emt 0:05:30]} O-O {[%emt 0:02:30]} 11. a3 {[%emt 0:01:30]} f5 {[%emt 0:04:30]} 12. Ne2 {[%emt 0:12:30]} Bd7 {[%emt 0:03:30]} 13. Re1 {[%emt 0:04:30]} Kh8 {[%emt 0:02:30]} 14. g3 {[%emt 0:06:30]} g5 {[%emt 0:02:30]} 15. Kg2 {[%emt 0:02:30]} Be8 {[%emt 0:04:30]} 16. h4 {[%emt 0:01:30]} Bh5 {[%emt 0:08:30]} 17. Nxg5 {[%emt 0:03:30]} Qd7 {[%emt 0:20:30]} 18. Qd3 {[%emt 0:03:30]} Bxe2 {[%emt 0:16:30]} 19. Rxe2 {[%emt 0:00:30]} Nd8 {[%emt 0:04:30]} 20. Qf3 {[%emt 0:08:30]} Nf7 {[%emt 0:06:53]} 21. Bf4 {[%emt 0:02:30]} Bxg5 {[%emt 0:04:13]} 22. hxg5 {[%emt 0:00:30]} Rg8 {[%emt 0:00:48]} 23. Qh5 {[%emt 0:02:30]} Qe7 {[%emt 0:02:31]} 24. Rh1 {[%emt 0:08:30]} Nxg5 {[%emt 0:00:53]} 25. Qh6 {[%emt 0:02:30]} Rg7 {[%emt 0:05:23]} 26. Qf6 {[%emt 0:04:30]} Qxf6 {[%emt 0:04:53]} 27. exf6 {[%emt 0:01:30]} Rg6 {[%emt 0:00:24]} 28. Bxg5 {[%emt 0:00:30]} Rxg5 {[%emt 0:00:00]} 29. Rxe6 {[%emt 0:00:30]} Rg6 {[%emt 0:03:09]} 30. Re7 {[%emt 0:01:30]} h6 {[%emt 0:00:04]} 31. f7 {[%emt 0:02:30]} Kg7 {[%emt 0:01:53]} 32. Rxb7 {[%emt 0:00:42]} Nc4 {[%emt 0:00:49]} 33. Bxc4 {[%emt 0:01:16]} dxc4 {[%emt 0:00:01]} 34. Rc1 {[%emt 0:00:37]} Rc6 {[%emt 0:00:37]} 35. Rd7 {[%emt 0:04:52]} a6 {[%emt 0:00:25]} 36. d5 {[%emt 0:01:34]} Rc5 {[%emt 0:00:54]} 37. Re1 {[%emt 0:02:05]} Rf8 {[%emt 0:00:27]} 38. Re5 {[%emt 0:02:45]} Rb5 {[%emt 0:00:10]} 39. Rxf5 {[%emt 0:01:30]} Rxb2 {[%emt 0:00:09]} 40. Rf3 {[%emt 0:00:51]} a5 {[%emt 0:00:49]} 41. Rc3 {[%emt 0:05:48]} Rc8 {[%emt 0:06:35]} 42. d6 {[%emt 0:02:30]} Rb3 {[%emt 0:00:30]} 43. Rc7 {[%emt 0:00:30]} Rd8 {[%emt 0:02:30]} 44. R3xc4 {[%emt 0:01:30]} Rxa3 {[%emt 0:03:30]} 45. Rg4+ {[%emt 0:00:30]} Kh8 {[%emt 0:00:42]} 46. Re7 {[%emt 0:00:30]} 1-0

[Event "ESTCC 50 2019"]
[Site "Mali Losinj"]
[Date "2019.09.25"]
[Round "8.16"]
[White "Detter, Peter"]
[Black "Rodriguez Bernal, Herman"]
[Result "1/2-1/2"]
[ECO "E80"]
[WhiteElo "1982"]
[BlackElo "1735"]
[Annotator "NA"]
[PlyCount "85"]
[EventDate "2019.09.18"]
[EventType "team-tourn"]
[EventCountry "CRO"]
[SourceTitle "playchess.com"]
[Source "ChessBase"]
[SourceQuality "1"]
[WhiteTeam "Austria"]
[BlackTeam "Spain"]
[WhiteTeamCountry "AUT"]
[BlackTeamCountry "ESP"]
[TimeControl "40/5400+30:1800+30"]

1. d4 {[%emt 0:00:30]} Nf6 {[%emt 0:01:30]} 2. c4 {[%emt 0:00:00]} g6 {[%emt 0:00:30]} 3. Nc3 {[%emt 0:00:00]} Bg7 {[%emt 0:00:30]} 4. e4 {[%emt 0:00:30]} d6 {[%emt 0:01:30]} 5. f3 {[%emt 0:01:30]} a5 {[%emt 0:07:30]} 6. Bg5 {[%emt 0:02:30]} Na6 {[%emt 0:01:30]} 7. Qd2 {[%emt 0:00:30]} h6 {[%emt 0:05:30]} 8. Be3 {[%emt 0:01:30]} Bd7 {[%emt 0:08:30]} 9. g3 {[%emt 0:07:30]} e5 {[%emt 0:04:30]} 10. d5 {[%emt 0:04:30]} Nc5 {[%emt 0:07:30]} 11. Nh3 {[%emt 0:03:30]} Qe7 {[%emt 0:05:30]} 12. Nf2 {[%emt 0:00:30]} g5 {[%emt 0:09:30]} 13. Nd3 {[%emt 0:05:30]} g4 {[%emt 0:01:30]} 14. Nxc5 {[%emt 0:03:30]} dxc5 {[%emt 0:00:30]} 15. Be2 {[%emt 0:04:30]} gxf3 {[%emt 0:06:30]} 16. Bxf3 {[%emt 0:00:30]} Ng4 {[%emt 0:00:30]} 17. Bxg4 {[%emt 0:05:30]} Bxg4 {[%emt 0:00:30]} 18. h3 {[%emt 0:00:30]} Bd7 {[%emt 0:01:30]} 19. O-O-O {[%emt 0:01:30]} Qd6 {[%emt 0:02:30]} 20. Qf2 {[%emt 0:06:30]} b6 {[%emt 0:01:30]} 21. g4 {[%emt 0:00:30]} f6 {[%emt 0:02:30]} 22. Ne2 {[%emt 0:02:30]} O-O-O {[%emt 0:03:30]} 23. Ng3 {[%emt 0:01:30]} Rdf8 {[%emt 0:01:30]} 24. Rhg1 {[%emt 0:02:30]} Kb7 {[%emt 0:00:30]} 25. Nf5 {[%emt 0:02:30]} Bxf5 {[%emt 0:00:30]} 26. gxf5 {[%emt 0:00:30]} Rf7 {[%emt 0:02:30]} 27. Rg6 {[%emt 0:02:30]} h5 {[%emt 0:00:30]} 28. Rdg1 {[%emt 0:00:30]} Rh7 {[%emt 0:00:30]} 29. h4 {[%emt 0:08:30]} Qd7 {[%emt 0:00:30]} 30. Kb1 {[%emt 0:02:30]} Qd8 {[%emt 0:02:30]} 31. Qc2 {[%emt 0:01:30]} Qd6 {[%emt 0:01:30]} 32. Qd2 {[%emt 0:03:30]} Bf8 {[%emt 0:02:03]} 33. Qd1 {[%emt 0:02:30]} Qd7 {[%emt 0:00:31]} 34. R1g3 {[%emt 0:02:30]} c6 {[%emt 0:03:32]} 35. Rg2 {[%emt 0:03:47]} cxd5 {[%emt 0:00:19]} 36. cxd5 {[%emt 0:00:34]} Qd6 {[%emt 0:01:13]} 37. R2g3 {[%emt 0:07:43]} Qd7 {[%emt 0:02:01]} 38. Bd2 {[%emt 0:01:07]} Ka6 {[%emt 0:03:08]} 39. Rb3 {[%emt 0:02:28]} Bd6 {[%emt 0:06:21]} 40. Qe2+ {[%emt 0:04:32]} Ka7 {[%emt 0:01:48]} 41. Rbg3 {[%emt 0:32:30]} Bf8 {[%emt 0:01:04]} 42. Ra3 {[%emt 0:00:00]} Kb7 {[%emt 0:04:30]} 43. Rb3 {[%emt 0:00:00]} 1/2-1/2

[Event "ESTCC 50 2019"]
[Site "Mali Losinj"]
[Date "2019.09.25"]
[Round "8.17"]
[White "Lauritzen, Einar"]
[Black "Blatny, Pavel"]
[Result "0-1"]
[ECO "A84"]
[WhiteElo "1990"]
[BlackElo "2325"]
[Annotator "NA"]
[PlyCount "64"]
[EventDate "2019.09.18"]
[EventType "team-tourn"]
[EventCountry "CRO"]
[SourceTitle "playchess.com"]
[Source "ChessBase"]
[SourceQuality "1"]
[WhiteTeam "Norway"]
[BlackTeam "Czech Republic"]
[WhiteTeamCountry "NOR"]
[BlackTeamCountry "CZE"]
[TimeControl "40/5400+30:1800+30"]

1. d4 {[%emt 0:00:30]} e6 {[%emt 0:02:30]} 2. Nf3 {[%emt 0:00:00]} b6 {[%emt 0:00:30]} 3. g3 {[%emt 0:01:00]} Bb7 {[%emt 0:00:00]} 4. Bg2 {[%emt 0:00:00]} f5 {[%emt 0:00:00]} 5. c4 {[%emt 0:02:00]} Be7 {[%emt 0:00:30]} 6. Nc3 {[%emt 0:01:30]} Nf6 {[%emt 0:00:00]} 7. O-O {[%emt 0:01:30]} Ne4 {[%emt 0:00:00]} 8. Qc2 {[%emt 0:03:30]} Nxc3 {[%emt 0:00:30]} 9. Qxc3 {[%emt 0:01:30]} Bf6 {[%emt 0:00:00]} 10. b4 {[%emt 0:03:30]} O-O {[%emt 0:01:00]} 11. Qd2 {[%emt 0:11:30]} a5 {[%emt 0:01:30]} 12. b5 {[%emt 0:04:30]} Qe7 {[%emt 0:00:00]} 13. Bb2 {[%emt 0:08:30]} d6 {[%emt 0:00:00]} 14. Rac1 {[%emt 0:01:30]} Nd7 {[%emt 0:00:30]} 15. Ba3 {[%emt 0:01:30]} Rfd8 {[%emt 0:02:30]} 16. Qe3 {[%emt 0:08:30]} Qe8 {[%emt 0:01:30]} 17. c5 {[%emt 0:01:30]} dxc5 {[%emt 0:00:00]} 18. dxc5 {[%emt 0:03:30]} Bd5 {[%emt 0:00:00]} 19. Nd4 {[%emt 0:04:30]} Bxd4 {[%emt 0:00:30]} 20. Qxd4 {[%emt 0:02:30]} Bxg2 {[%emt 0:02:30]} 21. Kxg2 {[%emt 0:00:30]} Nxc5 {[%emt 0:00:00]} 22. Qe5 {[%emt 0:00:30]} Rd5 {[%emt 0:02:00]} 23. Qxc7 {[%emt 0:02:30]} Qxb5 {[%emt 0:00:30]} 24. Rb1 {[%emt 0:07:30]} Qxe2 {[%emt 0:00:30]} 25. Rxb6 {[%emt 0:02:30]} Qe4+ {[%emt 0:00:30]} 26. Kg1 {[%emt 0:00:30]} Nd7 {[%emt 0:01:30]} 27. Rd6 {[%emt 0:06:38]} Ne5 {[%emt 0:02:30]} 28. f3 {[%emt 0:08:14]} Nxf3+ {[%emt 0:02:30]} 29. Rxf3 {[%emt 0:06:48]} Qxf3 {[%emt 0:00:30]} 30. Rxd5 {[%emt 0:00:30]} exd5 {[%emt 0:00:30]} 31. Bd6 {[%emt 0:00:56]} Re8 {[%emt 0:00:30]} 32. Be5 {[%emt 0:00:10]} Qe3+ {[%emt 0:00:30]} 0-1

[Event "ESTCC 50 2019"]
[Site "Mali Losinj"]
[Date "2019.09.25"]
[Round "8.18"]
[White "Priehoda, Vitezslav"]
[Black "Andersen, Per O"]
[Result "1/2-1/2"]
[ECO "B40"]
[WhiteElo "2352"]
[BlackElo "1971"]
[Annotator "NA"]
[PlyCount "61"]
[EventDate "2019.09.18"]
[EventType "team-tourn"]
[EventCountry "CRO"]
[SourceTitle "playchess.com"]
[Source "ChessBase"]
[SourceQuality "1"]
[WhiteTeam "Czech Republic"]
[BlackTeam "Norway"]
[WhiteTeamCountry "CZE"]
[BlackTeamCountry "NOR"]
[TimeControl "40/5400+30:1800+30"]

1. Nf3 {[%emt 0:00:30]} c5 {[%emt 0:01:30]} 2. e4 {[%emt 0:00:00]} e6 {[%emt 0:00:30]} 3. d3 {[%emt 0:00:00]} Nc6 {[%emt 0:00:30]} 4. g3 {[%emt 0:00:30]} g6 {[%emt 0:00:30]} 5. d4 {[%emt 0:02:30]} cxd4 {[%emt 0:00:30]} 6. Nxd4 {[%emt 0:00:00]} Bg7 {[%emt 0:01:30]} 7. Be3 {[%emt 0:06:00]} Nge7 {[%emt 0:06:30]} 8. Nc3 {[%emt 0:00:30]} d5 {[%emt 0:04:30]} 9. Bg2 {[%emt 0:03:30]} Nxd4 {[%emt 0:13:30]} 10. Bxd4 {[%emt 0:00:30]} e5 {[%emt 0:00:30]} 11. Bc5 {[%emt 0:00:30]} d4 {[%emt 0:00:30]} 12. Bxe7 {[%emt 0:07:30]} Qxe7 {[%emt 0:03:30]} 13. Nd5 {[%emt 0:00:30]} Qd8 {[%emt 0:08:30]} 14. c3 {[%emt 0:02:30]} dxc3 {[%emt 0:03:30]} 15. Nxc3 {[%emt 0:01:30]} O-O {[%emt 0:02:30]} 16. h4 {[%emt 0:01:30]} h5 {[%emt 0:02:30]} 17. O-O {[%emt 0:01:30]} Be6 {[%emt 0:02:30]} 18. Qe2 {[%emt 0:07:30]} Qe7 {[%emt 0:02:30]} 19. Rfd1 {[%emt 0:02:30]} Rfd8 {[%emt 0:01:30]} 20. Rxd8+ {[%emt 0:02:30]} Rxd8 {[%emt 0:00:30]} 21. Rd1 {[%emt 0:07:30]} Rxd1+ {[%emt 0:03:30]} 22. Qxd1 {[%emt 0:00:00]} Bf8 {[%emt 0:00:30]} 23. Nd5 {[%emt 0:10:00]} Bxd5 {[%emt 0:01:30]} 24. Qxd5 {[%emt 0:00:30]} Qc7 {[%emt 0:02:30]} 25. Bf1 {[%emt 0:01:30]} Bd6 {[%emt 0:03:30]} 26. Bc4 {[%emt 0:00:00]} Kg7 {[%emt 0:00:30]} 27. Kg2 {[%emt 0:00:00]} Qe7 {[%emt 0:00:30]} 28. b3 {[%emt 0:00:30]} Qc7 {[%emt 0:01:30]} 29. a4 {[%emt 0:02:30]} Qe7 {[%emt 0:01:30]} 30. Qd3 {[%emt 0:00:30]} a5 {[%emt 0:02:30]} 31. Bd5 {[%emt 0:01:30]} 1/2-1/2

[Event "ESTCC 50 2019"]
[Site "Mali Losinj"]
[Date "2019.09.25"]
[Round "8.19"]
[White "Ortoft, Kai"]
[Black "Konopka, Michal"]
[Result "0-1"]
[ECO "D02"]
[WhiteElo "1957"]
[BlackElo "2351"]
[Annotator "NA"]
[PlyCount "52"]
[EventDate "2019.09.18"]
[EventType "team-tourn"]
[EventCountry "CRO"]
[SourceTitle "playchess.com"]
[Source "ChessBase"]
[SourceQuality "1"]
[WhiteTeam "Norway"]
[BlackTeam "Czech Republic"]
[WhiteTeamCountry "NOR"]
[BlackTeamCountry "CZE"]
[TimeControl "40/5400+30:1800+30"]

1. d4 {[%emt 0:00:30]} g6 {[%emt 0:05:30]} 2. Nf3 {[%emt 0:00:00]} Bg7 {[%emt 0:00:30]} 3. g3 {[%emt 0:00:00]} d5 {[%emt 0:00:00]} 4. Bg2 {[%emt 0:00:30]} Nf6 {[%emt 0:00:00]} 5. O-O {[%emt 0:00:30]} O-O {[%emt 0:00:30]} 6. Nbd2 {[%emt 0:00:00]} a5 {[%emt 0:06:30]} 7. c4 {[%emt 0:08:00]} dxc4 {[%emt 0:00:30]} 8. Nxc4 {[%emt 0:00:30]} Be6 {[%emt 0:04:30]} 9. Nce5 {[%emt 0:08:30]} Bd5 {[%emt 0:00:30]} 10. b3 {[%emt 0:07:30]} c6 {[%emt 0:06:30]} 11. e3 {[%emt 0:02:30]} Nbd7 {[%emt 0:06:30]} 12. Nd3 {[%emt 0:00:30]} a4 {[%emt 0:06:30]} 13. b4 {[%emt 0:06:30]} a3 {[%emt 0:01:30]} 14. Re1 {[%emt 0:05:30]} Qc7 {[%emt 0:05:30]} 15. Nfe5 {[%emt 0:05:30]} Nxe5 {[%emt 0:06:30]} 16. Nxe5 {[%emt 0:00:30]} Bxg2 {[%emt 0:09:30]} 17. Kxg2 {[%emt 0:00:00]} Nd5 {[%emt 0:00:30]} 18. Nd3 {[%emt 0:05:00]} e5 {[%emt 0:00:30]} 19. dxe5 {[%emt 0:01:30]} Bxe5 {[%emt 0:00:30]} 20. Nxe5 {[%emt 0:00:30]} Qxe5 {[%emt 0:00:30]} 21. Bd2 {[%emt 0:00:30]} Rfd8 {[%emt 0:00:30]} 22. Qc2 {[%emt 0:01:30]} Qb2 {[%emt 0:00:30]} 23. Rec1 {[%emt 0:02:30]} Nf4+ {[%emt 0:00:30]} 24. gxf4 {[%emt 0:03:30]} Rxd2 {[%emt 0:00:00]} 25. Qb3 {[%emt 0:00:30]} Rxf2+ {[%emt 0:00:00]} 26. Kg3 {[%emt 0:01:30]} Rxh2 {[%emt 0:03:30]} 0-1